bitfinex-derivatives/quotes_BTCF0:USTF0_20241130
["timestamp","ask_amount","ask_price","bid_price","bid_amount"]
[1732932634407,0.003,96531.0,96530.0,0.69444316]
[1732932634609,0.002,96531.0,96530.0,0.69444316]
[1732932634917,0.002,96531.0,96530.0,0.6975557]
[1732932634918,0.001,96531.0,96530.0,0.6975557]
[1732932636513,0.001,96531.0,96530.0,0.6955557]
[1732932637117,0.001,96531.0,96530.0,0.6975557]
[1732932637613,0.01252689,96534.0,96533.0,0.051777]
[1732932637804,0.01252689,96534.0,96530.0,0.6457767]
[1732932637805,0.051778,96532.0,96531.0,0.05655321]
[1732932639813,0.051778,96532.0,96531.0,0.10833121]
[1732932640117,0.06530389,96534.0,96533.0,0.053777]
[1732932640504,0.06430389,96534.0,96533.0,0.051777]
[1732932641109,0.06430389,96534.0,96533.0,0.053777]
[1732932641306,0.06530389,96534.0,96533.0,0.053777]
[1732932642422,0.1454205,96534.0,96533.0,0.053777]
[1732932643214,0.1454205,96534.0,96533.0,0.05855321]
[1732932645515,0.42288476,96534.0,96533.0,0.05855321]
[1732932646119,0.1454205,96534.0,96533.0,0.05855321]
[1732932647714,0.37391468,96534.0,96533.0,0.05855321]
[1732932647914,0.45403129,96534.0,96533.0,0.05855321]
[1732932649224,0.1454205,96534.0,96533.0,0.05855321]
[1732932649818,0.06530389,96534.0,96533.0,0.05855321]
[1732932655828,0.06530389,96534.0,96533.0,0.002]
[1732932656927,0.37391468,96534.0,96533.0,0.002]
[1732932657223,0.37391468,96534.0,96533.0,0.05855321]
[1732932657224,0.4535782,96534.0,96533.0,0.05855321]
[1732932657619,0.14496741,96534.0,96533.0,0.05855321]
[1732932658819,0.37423287,96534.0,96533.0,0.05855321]
[1732932659027,0.45389639,96534.0,96533.0,0.05855321]
[1732932659221,0.14496741,96534.0,96533.0,0.05855321]
[1732932661035,0.34333819,96534.0,96533.0,0.05855321]
[1732932661221,0.14496741,96534.0,96533.0,0.05855321]
[1732932662028,0.13251422,96534.0,96533.0,0.64466416]
[1732932662721,0.13251422,96534.0,96533.0,0.69644116]
[1732932663626,0.0528507,96534.0,96533.0,0.69644116]
[1732932664031,0.13348735,96534.0,96533.0,0.69644116]
[1732932664818,0.0528507,96534.0,96533.0,0.69644116]
[1732932666726,0.0528507,96534.0,96533.0,0.69967978]
[1732932668127,0.0528507,96534.0,96533.0,0.69644116]
[1732932669836,0.0528507,96534.0,96533.0,0.69967977]
[1732932671827,0.0528507,96534.0,96533.0,0.69644116]
[1732932672638,0.0528507,96534.0,96533.0,1.05724116]
[1732932674337,0.13352193,96534.0,96533.0,1.05724116]
[1732932674636,0.29995195,96534.0,96533.0,1.05724116]
[1732932674827,0.38062318,96534.0,96533.0,1.05724116]
[1732932675034,0.13352193,96534.0,96533.0,1.05724116]
[1732932676233,0.2999412,96534.0,96533.0,1.05724116]
[1732932676431,0.29551243,96534.0,96533.0,1.05724116]
[1732932676634,0.14712911,96550.0,96533.0,1.05724116]
[1732932676635,0.27812787,96541.0,96537.0,0.051775]
[1732932676833,0.27812787,96541.0,96533.0,1.00392642]
[1732932676834,0.27812787,96552.0,96540.0,0.41735321]
[1732932677031,0.27812787,96563.0,96561.0,0.051762]
[1732932677227,0.07606429,96562.0,96561.0,0.051762]
[1732932677433,0.07614809,96562.0,96561.0,0.051762]
[1732932678036,0.07614809,96562.0,96561.0,0.10831521]
[1732932678436,0.07714809,96562.0,96561.0,0.11731521]
[1732932678636,0.07714809,96562.0,96561.0,0.70342616]
[1732932678843,0.08214809,96562.0,96561.0,0.70342616]
[1732932679035,0.08814809,96562.0,96561.0,0.69542616]
[1732932679237,0.0120838,96562.0,96561.0,0.69542616]
[1732932682240,0.0120838,96562.0,96561.0,0.69866365]
[1732932682539,0.0120838,96562.0,96561.0,0.69542616]
[1732932683041,0.0120838,96562.0,96561.0,0.69866365]
[1732932684143,0.0120838,96562.0,96561.0,0.69542616]
[1732932684644,0.01215167,96564.0,96563.0,0.051761]
[1732932684847,0.051748,96587.0,96563.0,0.05655321]
[1732932685138,0.051748,96587.0,96574.0,0.051755]
[1732932685139,0.051756,96575.0,96574.0,0.051755]
[1732932685645,0.05187478,96575.0,96574.0,0.051755]
[1732932686339,0.05187478,96575.0,96574.0,0.10830821]
[1732932686738,0.04077478,96575.0,96574.0,0.10830821]
[1732932686934,0.11682815,96575.0,96574.0,0.10830821]
[1732932687741,0.11682815,96575.0,96574.0,0.11730821]
[1732932687936,0.11682815,96575.0,96574.0,0.009]
[1732932688137,0.11683036,96575.0,96574.0,0.009]
[1732932688342,0.11683036,96575.0,96574.0,0.018]
[1732932689456,0.39484798,96575.0,96574.0,0.018]
[1732932690744,0.11683036,96575.0,96574.0,0.018]
[1732932692745,0.47763036,96575.0,96574.0,0.018]
[1732932693945,0.40157478,96575.0,96574.0,0.018]
[1732932694751,0.40157478,96575.0,96541.0,0.00155358]
[1732932694752,0.051772,96542.0,96541.0,0.00155358]
[1732932694955,0.051772,96542.0,96541.0,0.58766453]
[1732932695145,0.051772,96542.0,96541.0,0.64421774]
[1732932696256,0.051772,96542.0,96541.0,0.64821774]
[1732932696945,0.051772,96542.0,96541.0,0.00555358]
[1732932697257,0.051772,96542.0,96541.0,0.004]
[1732932697258,0.412572,96542.0,96541.0,0.004]
[1732932697846,0.42483861,96542.0,96531.0,0.3608]
[1732932698146,0.051774,96538.0,96537.0,0.05655321]
[1732932699650,0.051774,96538.0,96537.0,0.05955321]
[1732932700651,0.051774,96538.0,96537.0,0.06055321]
[1732932708048,0.39379519,96542.0,96537.0,0.06055321]
[1732932708049,0.01226661,96542.0,96541.0,0.051773]
[1732932708255,0.412562,96562.0,96545.0,0.051771]
[1732932708256,0.05177,96546.0,96545.0,0.051771]
[1732932708454,0.05177,96546.0,96545.0,0.63788195]
[1732932708659,0.05177,96546.0,96545.0,0.69443516]
[1732932709261,0.051767,96552.0,96551.0,0.051767]
[1732932709561,0.051763,96559.0,96558.0,0.05655321]
[1732932710861,0.062763,96559.0,96558.0,0.05755321]
[1732932716759,0.062763,96559.0,96558.0,0.001]
[1732932719859,0.051773,96540.0,96539.0,0.3608]
[1732932720168,0.051773,96540.0,96539.0,0.94691095]
[1732932720374,0.051773,96540.0,96539.0,0.05655321]
[1732932721168,0.051773,96540.0,96539.0,0.05955321]
[1732932721969,0.0642133,96540.0,96539.0,0.05955321]
[1732932722466,0.0642133,96540.0,96539.0,0.64566416]
[1732932729071,0.0642133,96540.0,96539.0,0.69743816]
[1732932729384,0.0642133,96540.0,96539.0,1.05823816]
[1732932729385,0.0124403,96540.0,96539.0,1.05823816]
[1732932729578,0.051771,96545.0,96539.0,1.00646416]
[1732932729868,0.051771,96545.0,96544.0,0.051771]
[1732932730070,0.051771,96545.0,96544.0,0.10832421]
[1732932730380,0.051771,96545.0,96544.0,0.69443516]
[1732932732074,0.051769,96550.0,96544.0,0.69443516]
[1732932732371,0.051769,96550.0,96549.0,0.051767]
[1732932732571,0.051769,96550.0,96549.0,0.69443116]
[1732932733164,0.06409757,96550.0,96549.0,0.69443116]
[1732932733573,0.06609757,96550.0,96549.0,0.69443116]
[1732932733769,0.01432857,96550.0,96549.0,0.69443116]
[1732932733975,0.002,96550.0,96549.0,0.69443116]
[1732932734168,0.002,96550.0,96549.0,0.74883116]
[1732932734568,0.003,96550.0,96549.0,0.74883116]
[1732932735475,0.002,96550.0,96549.0,0.74883116]
[1732932735779,0.051761,96564.0,96563.0,0.051761]
[1732932735978,0.051761,96564.0,96563.0,0.10831421]
[1732932736177,0.051761,96564.0,96563.0,0.69442516]
[1732932736371,0.40426697,96573.0,96563.0,0.69442516]
[1732932736577,0.06431815,96573.0,96572.0,0.10830921]
[1732932736775,0.06431815,96573.0,96572.0,0.69442016]
[1732932738179,0.07331815,96573.0,96572.0,0.69542016]
[1732932738569,0.07331815,96573.0,96572.0,0.69442016]
[1732932738770,0.07331815,96573.0,96572.0,0.69542016]
[1732932739077,0.07831815,96573.0,96572.0,0.69642016]
[1732932739378,0.065756,96573.0,96572.0,0.64466416]
[1732932752384,0.065756,96573.0,96572.0,0.05855321]
[1732932755181,0.065756,96573.0,96572.0,0.002]
[1732932757482,0.060756,96573.0,96572.0,0.001]
[1732932757685,0.058756,96573.0,96572.0,0.001]
[1732932757983,0.058756,96573.0,96572.0,0.05855321]
[1732932757984,0.067756,96573.0,96572.0,0.05855321]
[1732932758385,0.067756,96573.0,96572.0,0.64466416]
[1732932762793,0.067756,96573.0,96572.0,0.69642016]
[1732932763390,0.067756,96573.0,96572.0,0.64466416]
[1732932764097,0.37471813,96573.0,96572.0,0.64466416]
[1732932764996,0.37471813,96573.0,96572.0,0.05855321]
[1732932766090,0.066756,96573.0,96572.0,0.05855321]
[1732932766294,0.37471813,96573.0,96572.0,0.05855321]
[1732932767392,0.066756,96573.0,96572.0,0.05855321]
[1732932771295,0.066756,96573.0,96572.0,0.0617908]
[1732932775810,0.066756,96573.0,96572.0,0.05855321]
[1732932777396,0.427556,96573.0,96572.0,0.002]
[1732932777605,0.482256,96573.0,96572.0,0.002]
[1732932783911,0.481256,96573.0,96572.0,0.001]
[1732932784405,0.051763,96560.0,96557.0,0.105864]
[1732932784611,0.051763,96560.0,96558.0,0.00323794]
[1732932784813,0.051763,96560.0,96557.0,0.69197495]
[1732932784814,0.051763,96560.0,96559.0,0.05655321]
[1732932785203,0.051763,96560.0,96559.0,0.64266416]
[1732932786408,0.053763,96560.0,96559.0,0.64266416]
[1732932787305,0.056763,96560.0,96559.0,0.64266416]
[1732932787911,0.057763,96560.0,96559.0,0.64266416]
[1732932789410,0.057763,96560.0,96559.0,0.69442716]
[1732932789900,0.006,96560.0,96559.0,0.69442716]
[1732932791912,0.006,96560.0,96559.0,0.69766488]
[1732932792101,0.006,96560.0,96559.0,0.70284516]
[1732932792305,0.051758,96569.0,96568.0,0.051757]
[1732932792706,0.051758,96569.0,96568.0,0.69442116]
[1732932792907,0.051758,96569.0,96568.0,0.74915878]
[1732932793516,0.063758,96569.0,96568.0,0.75015878]
[1732932794210,0.058758,96569.0,96568.0,0.75015878]
[1732932794411,0.059758,96569.0,96568.0,0.75015878]
[1732932794609,0.054758,96569.0,96568.0,0.74915878]
[1732932795122,0.054758,96569.0,96568.0,0.75239627]
[1732932795123,0.052758,96569.0,96568.0,0.75239627]
[1732932795422,0.003,96569.0,96568.0,0.74915865]
[1732932796420,0.002,96569.0,96568.0,0.74915865]
[1732932796808,0.051758,96569.0,96568.0,0.74915865]
[1732932798608,0.051758,96569.0,96568.0,0.74592116]
[1732932798809,0.051758,96569.0,96568.0,0.74915863]
[1732932799913,0.051758,96569.0,96568.0,0.74592116]
[1732932802017,0.051758,96569.0,96568.0,1.10672116]
[1732932802321,0.051758,96569.0,96568.0,0.74592116]
[1732932802526,0.01239711,96574.0,96568.0,1.10672116]
[1732932802815,0.051756,96574.0,96573.0,0.10830921]
[1732932803223,0.051756,96574.0,96573.0,0.69442016]
[1732932803820,0.052756,96574.0,96573.0,0.69442016]
[1732932804223,0.001,96574.0,96573.0,0.69442016]
[1732932804823,0.003,96574.0,96573.0,0.69442016]
[1732932806421,0.004,96574.0,96573.0,0.69442016]
[1732932806824,0.004,96574.0,96573.0,0.69765737]
[1732932808329,0.004,96574.0,96573.0,1.05845737]
[1732932809626,0.004,96574.0,96573.0,1.05522016]
[1732932809827,0.004,96574.0,96573.0,1.05845735]
[1732932810422,0.055755,96574.0,96573.0,1.05845735]
[1732932811427,0.162155,96574.0,96573.0,1.05845735]
[1732932811723,0.162155,96574.0,96573.0,1.05522016]
[1732932812524,0.160155,96574.0,96573.0,1.05622016]
[1732932813231,0.160155,96574.0,96573.0,1.05522016]
[1732932813729,0.165155,96574.0,96573.0,1.05522016]
[1732932813929,0.166155,96574.0,96573.0,1.05522016]
[1732932815737,0.167155,96574.0,96573.0,1.05522016]
[1732932816336,0.166155,96574.0,96573.0,1.05522016]
[1732932817133,0.167155,96574.0,96573.0,1.05522016]
[1732932818629,0.14707002,96592.0,96573.0,1.05522016]
[1732932818829,0.11138543,96630.0,96573.0,1.05522016]
[1732932819038,1.1698,96721.0,96573.0,1.05522016]
[1732932819039,0.4125,96677.0,96645.0,0.01]
[1732932819331,0.4125,96677.0,96663.0,0.3608]
[1732932819332,0.155607,96664.0,96663.0,0.3608]
[1732932819533,0.1039,96664.0,96663.0,0.3608]
[1732932819836,0.1039,96664.0,96663.0,0.88983743]
[1732932819837,0.10401577,96664.0,96663.0,0.88983743]
[1732932820727,0.10501577,96664.0,96663.0,0.89883743]
[1732932821831,0.10501577,96664.0,96663.0,0.90783743]
[1732932822632,0.1171146,96664.0,96663.0,0.90783743]
[1732932823032,0.10501577,96664.0,96663.0,0.96439064]
[1732932824533,0.10501577,96664.0,96663.0,1.32519064]
[1732932829338,0.01230003,96667.0,96663.0,1.37689764]
[1732932829537,0.0543,96668.0,96665.0,0.05655321]
[1732932829733,0.0543,96668.0,96665.0,0.58559064]
[1732932830247,8.25e-05,96667.0,96665.0,0.58559064]
[1732932830942,8.25e-05,96667.0,96665.0,0.28663743]
[1732932830943,0.051706,96666.0,96665.0,0.28663743]
[1732932831340,0.051706,96666.0,96665.0,0.29563743]
[1732932832144,0.051706,96666.0,96665.0,0.28065586]
[1732932834251,0.160606,96666.0,96665.0,0.28065586]
[1732932835645,0.160606,96666.0,96665.0,0.19685586]
[1732932835851,0.160606,96666.0,96665.0,0.11305586]
[1732932836156,0.105006,96666.0,96665.0,0.11305586]
[1732932839952,0.670486,96666.0,96665.0,0.11305586]
[1732932840151,0.670486,96666.0,96665.0,0.29736115]
[1732932840554,0.670486,96666.0,96665.0,0.11305586]
[1732932841358,0.26418915,96666.0,96665.0,0.57311507]
[1732932841546,0.26418915,96666.0,96665.0,0.58211507]
[1732932841748,0.26418915,96666.0,96665.0,0.53040907]
[1732932842055,0.26418915,96666.0,96665.0,0.58211507]
[1732932842056,0.07787853,96666.0,96665.0,0.58211507]
[1732932842646,0.07787853,96666.0,96665.0,0.57311507]
[1732932842845,0.07787853,96666.0,96665.0,0.58211507]
[1732932843048,0.13064,96666.0,96665.0,0.58211507]
[1732932843448,0.13064,96666.0,96665.0,0.83067258]
[1732932844153,8.25e-05,96667.0,96665.0,0.58211507]
[1732932844344,0.13064,96666.0,96665.0,0.52556186]
[1732932844853,0.13064,96666.0,96665.0,0.53040907]
[1732932845459,0.182346,96666.0,96665.0,0.53040907]
[1732932846459,0.182346,96666.0,96665.0,0.84110596]
[1732932846856,0.051706,96666.0,96665.0,0.84110596]
[1732932847051,0.13064,96666.0,96665.0,0.84110596]
[1732932847255,0.13064,96666.0,96665.0,1.00333096]
[1732932847558,0.13064,96666.0,96665.0,0.99433096]
[1732932847759,0.13064,96666.0,96665.0,1.00333096]
[1732932847960,0.13064,96666.0,96665.0,1.37616723]
[1732932848257,0.13064,96666.0,96665.0,1.58219192]
[1732932848457,0.13064,96666.0,96665.0,1.57319192]
[1732932849158,0.13064,96666.0,96665.0,1.57836724]
[1732932849361,0.13064,96666.0,96665.0,1.57036724]
[1732932849660,0.051706,96666.0,96665.0,1.57036724]
[1732932849861,0.182346,96666.0,96665.0,1.57036724]
[1732932850252,0.182346,96666.0,96665.0,1.56519192]
[1732932850450,0.182346,96666.0,96665.0,2.24352204]
[1732932850654,0.182346,96666.0,96665.0,2.67765585]
[1732932850858,0.051706,96666.0,96665.0,2.67765585]
[1732932851060,0.182346,96666.0,96665.0,2.67765585]
[1732932851263,0.182346,96666.0,96665.0,1.56519192]
[1732932852255,0.182346,96666.0,96665.0,1.56195734]
[1732932852465,0.182346,96666.0,96665.0,0.51340907]
[1732932852770,0.182346,96666.0,96665.0,0.45685586]
[1732932852971,0.237746,96666.0,96665.0,0.45685586]
[1732932853370,0.237746,96666.0,96665.0,0.70494502]
[1732932853671,0.182346,96666.0,96665.0,0.70494502]
[1732932853966,0.182346,96666.0,96665.0,0.45685586]
[1732932856563,0.180906,96666.0,96665.0,0.45585586]
[1732932856968,0.180906,96666.0,96665.0,0.70394502]
[1732932857265,0.051706,96666.0,96665.0,0.45585586]
[1732932857565,0.180906,96666.0,96665.0,0.45585586]
[1732932858663,0.051706,96666.0,96665.0,0.45585586]
[1732932859066,0.180906,96666.0,96665.0,0.70394502]
[1732932859265,0.180906,96666.0,96665.0,0.45585586]
[1732932859560,0.180906,96666.0,96665.0,1.50441481]
[1732932859960,0.180906,96666.0,96665.0,1.56096802]
[1732932860360,0.180906,96666.0,96665.0,1.56420263]
[1732932861072,0.051706,96666.0,96665.0,1.56420263]
[1732932861370,0.180906,96666.0,96665.0,1.56420263]
[1732932861760,0.180906,96666.0,96665.0,0.98857039]
[1732932862169,0.051706,96666.0,96665.0,0.98857039]
[1732932862469,0.180906,96666.0,96665.0,0.98857039]
[1732932863159,0.180906,96666.0,96665.0,1.36072439]
[1732932863668,0.051706,96666.0,96665.0,0.98857039]
[1732932863876,0.180906,96666.0,96665.0,0.98857039]
[1732932865971,0.180906,96666.0,96665.0,1.04027639]
[1732932865972,0.1292,96666.0,96665.0,1.04027639]
[1732932866159,0.1292,96666.0,96665.0,0.98857039]
[1732932866362,0.051706,96666.0,96665.0,0.93201718]
[1732932866577,0.180906,96666.0,96665.0,0.93201718]
[1732932867167,0.180906,96666.0,96665.0,0.7693325]
[1732932867772,0.180906,96666.0,96665.0,1.23903456]
[1732932868275,0.180906,96666.0,96665.0,0.45585586]
[1732932871171,0.180906,96666.0,96665.0,0.70410569]
[1732932871674,0.180906,96666.0,96665.0,0.45585586]
[1732932872082,0.180906,96666.0,96665.0,0.70410569]
[1732932872276,0.180906,96666.0,96665.0,0.45585586]
[1732932872471,0.051706,96666.0,96665.0,0.45585586]
[1732932872673,0.180906,96666.0,96665.0,0.45585586]
[1732932872874,0.051706,96666.0,96665.0,0.45585586]
[1732932873078,0.051706,96666.0,96665.0,0.64204429]
[1732932873079,0.180906,96666.0,96665.0,0.64204429]
[1732932873377,0.180906,96666.0,96665.0,0.46085586]
[1732932873981,0.180906,96666.0,96665.0,0.45685586]
[1732932874282,0.180906,96666.0,96665.0,0.45585586]
[1732932874471,0.051706,96666.0,96665.0,0.45585586]
[1732932874671,0.180906,96666.0,96665.0,0.45585586]
[1732932874868,0.051706,96666.0,96665.0,0.45585586]
[1732932875096,0.180906,96666.0,96665.0,0.45585586]
[1732932875467,0.051706,96666.0,96665.0,0.45585586]
[1732932875672,0.180906,96666.0,96665.0,0.45585586]
[1732932875882,0.051706,96666.0,96665.0,0.45585586]
[1732932876078,0.180906,96666.0,96665.0,0.45585586]
[1732932880483,0.051706,96666.0,96665.0,0.45585586]
[1732932880676,0.180906,96666.0,96665.0,0.45585586]
[1732932882290,0.051706,96666.0,96665.0,0.45585586]
[1732932882487,0.180906,96666.0,96665.0,0.45585586]
[1732932882989,0.178866,96666.0,96665.0,0.45585586]
[1732932883575,0.051706,96666.0,96665.0,0.45585586]
[1732932883889,0.178866,96666.0,96665.0,0.45585586]
[1732932884185,0.051706,96666.0,96665.0,0.45585586]
[1732932884789,0.178866,96666.0,96665.0,0.45585586]
[1732932887281,0.051706,96666.0,96665.0,0.45585586]
[1732932887490,0.178866,96666.0,96665.0,0.45585586]
[1732932889783,0.051706,96666.0,96665.0,0.45585586]
[1732932889994,0.178866,96666.0,96665.0,0.45585586]
[1732932891482,0.051706,96666.0,96665.0,0.45585586]
[1732932891982,0.178866,96666.0,96665.0,0.45585586]
[1732932892289,0.051706,96666.0,96665.0,0.45585586]
[1732932892486,0.178866,96666.0,96665.0,0.45585586]
[1732932892694,0.051706,96666.0,96665.0,0.45585586]
[1732932893688,0.178866,96666.0,96665.0,0.45585586]
[1732932895187,0.051706,96666.0,96665.0,0.45585586]
[1732932895386,0.178866,96666.0,96665.0,0.45585586]
[1732932895686,0.178866,96666.0,96665.0,0.51240907]
[1732932896093,0.12716,96666.0,96665.0,0.51240907]
[1732932896392,8.25e-05,96667.0,96665.0,0.51240907]
[1732932896588,8.25e-05,96667.0,96666.0,0.11095321]
[1732932896793,0.1272425,96667.0,96666.0,0.11095321]
[1732932896992,0.1272425,96667.0,96666.0,0.20600907]
[1732932897195,8.25e-05,96667.0,96666.0,0.20600907]
[1732932897993,8.25e-05,96667.0,96666.0,0.25771507]
[1732932897994,0.1272425,96667.0,96666.0,0.25771507]
[1732932898181,0.1272425,96667.0,96666.0,0.20116186]
[1732932898386,0.1272425,96667.0,96666.0,0.25771507]
[1732932898787,8.25e-05,96667.0,96666.0,0.25771507]
[1732932899095,8.25e-05,96667.0,96666.0,0.31251507]
[1732932903293,8.25e-05,96667.0,96666.0,0.26080907]
[1732932903798,8.25e-05,96667.0,96666.0,0.31251507]
[1732932906196,8.25e-05,96667.0,96666.0,0.20600907]
[1732932907101,0.1272425,96667.0,96666.0,0.20600907]
[1732932910533,0.1789475,96667.0,96666.0,0.15160907]
[1732932910813,0.1789475,96667.0,96666.0,0.09505586]
[1732932911025,0.2824475,96667.0,96666.0,0.09505586]
[1732932916008,0.1552875,96667.0,96666.0,0.09505586]
[1732932916206,0.2812075,96667.0,96666.0,0.09505586]
[1732932918515,0.1260025,96667.0,96666.0,0.15160907]
[1732932919909,0.0517875,96667.0,96666.0,0.15160907]
[1732932920112,0.1777075,96667.0,96666.0,0.15160907]
[1732932922216,0.0517875,96667.0,96666.0,0.15160907]
[1732932922403,0.1777075,96667.0,96666.0,0.15160907]
[1732932923122,0.0517875,96667.0,96666.0,0.15160907]
[1732932925210,0.1777075,96667.0,96666.0,0.15160907]
[1732932931116,0.1777075,96667.0,96666.0,0.51240907]
[1732932931117,0.1807075,96667.0,96666.0,0.51240907]
[1732932932318,0.0547875,96667.0,96666.0,0.51240907]
[1732932932518,0.1807075,96667.0,96666.0,0.51240907]
[1732932943918,0.0547875,96667.0,96666.0,0.51240907]
[1732932944124,0.1797875,96667.0,96666.0,0.51240907]
[1732932954431,0.1797875,96667.0,96666.0,0.45585586]
[1732932958335,0.1797875,96667.0,96666.0,0.51240907]
[1732932961438,0.1280825,96667.0,96666.0,0.51240907]
[1732932961844,0.1797875,96667.0,96666.0,0.51240907]
[1732932967647,0.0547875,96667.0,96666.0,0.51240907]
[1732932967852,0.1797875,96667.0,96666.0,0.51240907]
[1732932971038,0.1797875,96667.0,96666.0,3.51240907]
[1732932971645,0.0547875,96667.0,96666.0,3.51240907]
[1732932971844,0.1797875,96667.0,96666.0,3.51240907]
[1732932975348,0.1797875,96667.0,96666.0,3.45585586]
[1732932975549,0.1797875,96667.0,96666.0,3.51240907]
[1732932978447,0.0547875,96667.0,96666.0,3.51240907]
[1732932978647,0.1799475,96667.0,96666.0,3.51240907]
[1732933002074,0.0547875,96667.0,96666.0,3.51240907]
[1732933002375,0.1799475,96667.0,96666.0,3.51240907]
[1732933002962,0.0547875,96667.0,96666.0,3.51240907]
[1732933003168,0.1799475,96667.0,96666.0,3.51240907]
[1732933009285,0.1799475,96667.0,96666.0,3.45585586]
[1732933010274,0.1799475,96667.0,96666.0,3.51240907]
[1732933013277,0.0517,96678.0,96669.0,0.05655321]
[1732933013278,0.03961633,96673.0,96669.0,0.05655321]
[1732933013483,0.03961633,96673.0,96671.0,0.3608]
[1732933013676,0.03961633,96673.0,96672.0,0.11655321]
[1732933014074,0.03961633,96673.0,96672.0,0.21160907]
[1732933014275,0.03969994,96673.0,96672.0,0.21160907]
[1732933014479,0.04269994,96673.0,96672.0,0.21160907]
[1732933015085,0.06340224,96673.0,96672.0,0.21160907]
[1732933015280,0.07581063,96673.0,96672.0,0.21160907]
[1732933016379,0.016492,96673.0,96672.0,0.21160907]
[1732933018587,0.068194,96673.0,96672.0,0.21160907]
[1732933023887,0.068194,96673.0,96672.0,3.21160907]
[1732933030186,0.068194,96673.0,96672.0,3.15160907]
[1732933032195,0.068194,96673.0,96672.0,3.51240907]
[1732933034885,0.132194,96673.0,96672.0,3.45585586]
[1732933037597,0.257794,96673.0,96672.0,3.45585586]
[1732933040291,0.193794,96673.0,96672.0,3.45585586]
[1732933040494,0.193794,96673.0,96672.0,3.51240907]
[1732933049020,0.193834,96673.0,96672.0,3.45585586]
[1732933054418,0.193834,96673.0,96672.0,3.45156578]
[1732933054718,0.193834,96673.0,96672.0,3.44026728]
[1732933054918,0.193834,96673.0,96672.0,3.43518629]
[1732933055124,0.193834,96673.0,96672.0,3.42331392]
[1732933055320,0.193834,96673.0,96672.0,3.41877603]
[1732933055521,0.193834,96673.0,96672.0,3.39571723]
[1732933056022,0.193834,96673.0,96672.0,3.37403305]
[1732933056221,0.193834,96673.0,96672.0,3.36522111]
[1732933059633,0.193834,96673.0,96672.0,3.32612212]
[1732933064528,0.192714,96673.0,96672.0,3.32612212]
[1732933068136,0.068194,96673.0,96672.0,3.32612212]
[1732933068339,0.192714,96673.0,96672.0,3.32612212]
[1732933075936,0.192714,96673.0,96672.0,3.31889089]
[1732933077543,0.192714,96673.0,96672.0,3.31378626]
[1732933077938,0.192714,96673.0,96672.0,2.95298626]
[1732933078635,0.192714,96673.0,96672.0,2.8579304]
[1732933078943,0.192714,96673.0,96672.0,2.95298626]
[1732933080347,0.192714,96673.0,96672.0,2.9928062]
[1732933080546,0.192714,96673.0,96672.0,2.93625299]
[1732933082244,0.192714,96673.0,96672.0,2.93340787]
[1732933084442,0.192714,96673.0,96672.0,2.8267475]
[1732933086449,0.192714,96673.0,96672.0,1.88824972]
[1732933086748,0.192714,96673.0,96672.0,1.67318391]
[1732933086948,0.192714,96673.0,96672.0,1.27151792]
[1732933088142,0.192714,96673.0,96672.0,1.26340692]
[1732933088348,0.192714,96673.0,96672.0,0.72263667]
[1732933089444,0.192714,96673.0,96672.0,0.50290342]
[1732933090349,0.192714,96673.0,96672.0,0.48585636]
[1732933090651,0.192714,96673.0,96672.0,0.2149745]
[1732933090839,0.2955282,96673.0,96651.0,0.07161386]
[1732933091039,0.051716,96648.0,96647.0,0.13111386]
[1732933091242,0.176276,96648.0,96647.0,0.13111386]
[1732933092447,0.176276,96648.0,96647.0,0.12511386]
[1732933092647,0.176276,96648.0,96647.0,0.06866386]
[1732933092851,0.537076,96648.0,96647.0,0.06866386]
[1732933093953,0.54920502,96648.0,96647.0,0.07366386]
[1732933094750,0.49748902,96648.0,96647.0,0.07366386]
[1732933094956,0.54920502,96648.0,96647.0,0.07366386]
[1732933095751,0.54908502,96648.0,96647.0,0.07366386]
[1732933095954,0.42464502,96648.0,96647.0,0.07366386]
[1732933096157,0.04146902,96648.0,96647.0,0.43446386]
[1732933097152,0.12444,96648.0,96647.0,0.43446386]
[1732933099358,0.176156,96648.0,96647.0,0.43446386]
[1732933100046,0.18816944,96648.0,96647.0,0.43446386]
[1732933100850,0.06372944,96648.0,96647.0,0.43446386]
[1732933101050,0.18816944,96648.0,96647.0,0.43446386]
[1732933105863,0.13645344,96648.0,96647.0,0.43446386]
[1732933107559,0.18816944,96648.0,96647.0,0.43446386]
[1732933109362,0.18816944,96648.0,96647.0,0.07366386]
[1732933109562,0.18816944,96648.0,96647.0,0.43446386]
[1732933110864,0.13645344,96648.0,96647.0,0.43446386]
[1732933111062,0.18816944,96648.0,96647.0,0.43446386]
[1732933111559,0.13645344,96648.0,96647.0,0.43446386]
[1732933116686,0.18816944,96648.0,96647.0,0.43446386]
[1732933117262,0.06372944,96648.0,96647.0,0.43446386]
[1732933117570,0.18816944,96648.0,96647.0,0.07366386]
[1732933119063,0.18816944,96648.0,96647.0,0.06766386]
[1732933120065,0.18816944,96648.0,96647.0,0.06485197]
[1732933120471,0.18816944,96648.0,96647.0,0.06266386]
[1732933120780,0.18816944,96648.0,96647.0,0.06466386]
[1732933125673,0.051718,96643.0,96642.0,0.3608]
[1732933125972,0.13645344,96648.0,96635.0,0.3608]
[1732933126673,0.051719,96642.0,96635.0,0.3608]
[1732933127372,0.13645344,96648.0,96635.0,0.3608]
[1732933127558,0.051719,96641.0,96635.0,0.3608]
[1732933127764,0.12404,96640.0,96635.0,0.3608]
[1732933128468,0.12404,96640.0,96635.0,0.3668]
[1732933128664,0.17576,96640.0,96635.0,0.3668]
[1732933128865,0.17576,96640.0,96635.0,0.3718]
[1732933129669,0.17576,96640.0,96635.0,0.3708]
[1732933130575,0.051722,96637.0,96635.0,0.3708]
[1732933130761,0.051722,96636.0,96635.0,0.3708]
[1732933132067,0.051722,96636.0,96635.0,0.3718]
[1732933132269,0.175762,96636.0,96635.0,0.3718]
[1732933137380,0.175762,96636.0,96635.0,0.011]
[1732933139465,0.18828029,96636.0,96635.0,0.011]
[1732933144782,0.18828029,96636.0,96624.0,0.00155235]
[1732933144783,0.01251829,96636.0,96624.0,0.00155235]
[1732933144973,0.051731,96620.0,96619.0,0.3608]
[1732933145176,0.051733,96616.0,96611.0,0.36132]
[1732933145371,0.051733,96616.0,96611.0,0.3608]
[1732933146578,0.051733,96616.0,96611.0,0.3549033]
[1732933146579,0.051735,96612.0,96611.0,0.3549033]
[1732933146787,0.175775,96612.0,96611.0,0.3549033]
[1732933148171,0.175775,96612.0,96611.0,0.3589033]
[1732933148985,0.175775,96612.0,96611.0,0.3649033]